bitfinex-derivatives/quotes_SOLF0:USTF0_20250419
["timestamp","ask_amount","ask_price","bid_price","bid_amount"]
[1745068459896,0.04621904,139.23,139.21,7.2328492]
[1745068460695,7.22911904,139.23,139.21,7.2328492]
[1745068463492,7.22911904,139.23,139.21,0.0490492]
[1745068464199,0.04621904,139.23,139.21,7.2326492]
[1745068467003,7.22911904,139.23,139.21,0.0490492]
[1745068467199,0.04621904,139.23,139.21,0.0490492]
[1745068467405,8.94467786,139.22,139.21,0.0490492]
[1745068467900,8.94467786,139.22,139.21,0.00774301]
[1745068469407,8.94467786,139.22,139.21,7.19164301]
[1745068469704,7.22941904,139.23,139.21,7.19164301]
[1745068470910,0.04621904,139.23,139.22,7.1834]
[1745068481915,0.04621904,139.23,139.21,7.19134301]
[1745068483018,0.04621904,139.23,139.21,0.00774301]
[1745068484218,0.04621904,139.23,139.21,7.19134301]
[1745068488421,7.22911904,139.23,139.21,0.00774301]
[1745068488720,0.04621904,139.23,139.21,0.00774301]
[1745068489019,0.04621904,139.23,139.21,7.19164301]
[1745068490020,7.22921904,139.23,139.21,0.00774301]
[1745068490214,8.9908969,139.23,139.21,0.00774301]
[1745068490621,16.1740969,139.23,139.21,0.00774301]
[1745068496825,7.1834,139.22,139.21,0.00774301]
[1745068497123,34.0308969,139.23,139.15,33.98467786]
[1745068497324,8.94467786,139.2,139.15,33.98467786]
[1745068497523,7.1851,139.19,139.16,7.1861]
[1745068498325,7.1851,139.19,139.16,7.23980999]
[1745068499523,7.1855,139.18,139.16,0.05370999]
[1745068500424,7.186,139.17,139.16,0.05370999]
[1745068501224,7.1872,139.15,139.12,25.34547]
[1745068501425,8.94467786,139.13,139.12,0.30547]
[1745068501627,8.94467786,139.15,139.12,0.30547]
[1745068501925,25.04,139.16,139.12,9.25014786]
[1745068502228,8.94467786,139.19,139.14,8.94467786]
[1745068502725,16.12987786,139.19,139.15,7.1868]
[1745068503325,16.12987786,139.19,139.16,7.1864]
[1745068504630,16.12987786,139.19,139.15,7.1868]
[1745068505827,16.12987786,139.19,139.16,0.05002792]
[1745068506429,7.1855,139.18,139.16,0.05002792]
[1745068508329,16.12967786,139.19,139.16,0.05002792]
[1745068511835,16.12967786,139.19,139.16,7.23652792]
[1745068512036,25.04,139.2,139.16,0.05002792]
[1745068512229,1.9694,139.22,139.16,8.99470578]
[1745068512537,1.9694,139.22,139.18,8.94467786]
[1745068512729,9.153,139.22,139.18,8.94467786]
[1745068512930,9.153,139.22,139.18,16.12977786]
[1745068513836,9.153,139.22,139.16,0.05002792]
[1745068513837,8.94467786,139.21,139.16,8.99470578]
[1745068514835,8.94467786,139.19,139.16,0.05002792]
[1745068516235,7.1857,139.18,139.16,0.05002792]
[1745068519139,16.12987786,139.19,139.16,0.05002792]
[1745068519742,7.1856,139.18,139.16,0.05002792]
[1745068521239,7.186,139.17,139.16,0.05002792]
[1745068523641,7.1857,139.18,139.16,0.05002792]
[1745068527042,7.186,139.17,139.16,0.05002792]
[1745068527238,8.94467786,139.17,139.13,7.1878]
[1745068527744,7.1867,139.16,139.12,41.21287786]
[1745068527943,8.94467786,139.17,139.12,16.13287786]
[1745068528140,10.90057786,139.17,139.12,16.13287786]
[1745068528341,7.1868,139.16,139.12,16.13287786]
[1745068529442,10.90057786,139.17,139.1,8.94467786]
[1745068529644,8.94467786,139.13,139.09,0.28808]
[1745068530044,7.1888,139.12,139.09,7.47798]
[1745068530244,7.23514423,139.12,139.09,7.47798]
[1745068530441,7.23514423,139.12,139.09,0.28808]
[1745068531047,7.1894,139.11,139.09,0.28808]
[1745068531650,7.1896,139.1,139.09,0.28808]
[1745068533748,7.1904,139.09,139.05,25.08]
[1745068533952,25.08,139.11,139.06,8.94467786]
[1745068534450,25.08,139.11,139.08,8.94467786]
[1745068534646,0.05435841,139.1,139.08,8.94467786]
[1745068536253,0.05435841,139.1,139.09,7.1897]
[1745068539654,25.08,139.14,139.12,7.1885]
[1745068540051,7.1874,139.15,139.11,8.94467786]
[1745068540254,7.1874,139.15,139.12,7.1883]
[1745068540956,7.1874,139.15,139.12,7.23833392]
[1745068541855,8.94467786,139.15,139.12,0.05003392]
[1745068542055,8.94467786,139.13,139.12,0.05003392]
[1745068542454,16.13267786,139.13,139.12,0.05003392]
[1745068543056,10.92967786,139.13,139.05,34.00467786]
[1745068543258,8.94467786,139.11,139.05,34.00467786]
[1745068543454,8.94467786,139.11,139.06,7.1913]
[1745068543755,34.00467786,139.11,139.06,7.1913]
[1745068543956,7.19,139.1,139.06,7.1913]
[1745068544257,7.24490793,139.1,139.06,7.1913]
[1745068544953,7.24490793,139.1,139.07,7.1911]
[1745068547256,0.05490793,139.1,139.05,34.00467786]
[1745068547757,0.05490793,139.1,139.07,8.94467786]
[1745068548055,0.05490793,139.1,139.08,7.1906]
[1745068548362,0.05490793,139.1,139.07,8.94467786]
[1745068548562,25.06,139.14,139.09,8.94467786]
[1745068548756,39.76047786,139.17,139.11,8.94467786]
[1745068549158,7.1875,139.15,139.12,7.1882]
[1745068549355,8.94467786,139.15,139.09,34.00467786]
[1745068549761,7.1882,139.13,139.1,7.1892]
[1745068550057,7.1882,139.13,139.11,0.04941834]
[1745068550658,7.1886,139.12,139.11,0.04941834]
[1745068552965,16.13297786,139.13,139.11,0.04941834]
[1745068553565,8.94467786,139.13,139.11,0.04941834]
[1745068553762,7.1886,139.12,139.11,0.04941834]
[1745068557066,16.13297786,139.13,139.11,0.04941834]
[1745068558267,7.1883,139.13,139.11,0.04941834]
[1745068558465,32.2478,139.14,139.11,0.04941834]
[1745068558968,7.1881,139.13,139.11,0.04941834]
[1745068559668,32.2478,139.14,139.11,0.04941834]
[1745068560171,32.2478,139.14,139.11,7.23841834]
[1745068560470,32.2478,139.14,139.11,16.1830962]
[1745068561871,32.2478,139.14,139.11,0.04941834]
[1745068562071,8.94467786,139.13,139.11,0.04941834]
[1745068562472,7.1886,139.12,139.11,0.04941834]
[1745068565874,8.94467786,139.13,139.07,8.94467786]
[1745068566078,8.94467786,139.11,139.03,3.8947]
[1745068566376,16.13557786,139.08,139.03,1.9799]
[1745068566571,16.13557786,139.08,139.04,7.1924]
[1745068566773,16.13557786,139.08,139.04,16.13707786]
[1745068567270,0.04895173,139.07,139.04,16.13707786]
[1745068567772,7.24015173,139.07,139.04,16.13707786]
[1745068568578,7.1918,139.06,139.02,8.94467786]
[1745068569174,7.1918,139.06,139.02,16.13807786]
[1745068571574,7.1918,139.06,139.03,7.1931]
[1745068573175,0.04895173,139.07,139.02,8.94467786]
[1745068573971,7.1919,139.06,139.03,7.193]
[1745068574275,0.04895173,139.07,139.02,8.94467786]
[1745068574571,0.04895173,139.07,139.04,8.94467786]
[1745068575276,0.04895173,139.07,139.05,7.1922]
[1745068575876,0.04895173,139.07,139.06,7.1917]
[1745068577479,0.04895173,139.07,139.04,8.94467786]
[1745068578281,7.24015173,139.07,139.04,16.13707786]
[1745068578681,7.24015173,139.07,139.03,25.08]
[1745068578874,7.1917,139.06,139.03,25.08]
[1745068579077,7.1917,139.06,139.02,8.94467786]
[1745068579380,7.1917,139.06,139.03,7.193]
[1745068581782,7.1917,139.06,139.02,16.13817786]
[1745068581979,8.94467786,139.06,139.0,34.02467786]
[1745068583285,7.1924,139.05,139.02,7.1935]
[1745068583586,34.02467786,139.06,139.0,8.94467786]
[1745068584276,0.05242846,139.04,139.0,8.94467786]
[1745068584682,0.05242846,139.04,139.02,8.94467786]
[1745068586089,0.05242846,139.04,139.02,16.13817786]
[1745068586280,0.05242846,139.04,139.02,8.94467786]
[1745068586681,0.05242846,139.04,139.03,7.1932]
[1745068588987,8.94467786,139.09,139.05,7.192]
[1745068589187,8.94467786,139.09,139.05,16.13667786]
[1745068589487,25.08,139.1,139.07,16.13557786]
[1745068590085,32.2699,139.1,139.07,16.13557786]
[1745068590289,32.2699,139.1,139.07,16.19088546]
[1745068590489,25.08,139.1,139.07,16.19088546]
[1745068591295,32.2696,139.1,139.07,16.19088546]
[1745068591892,7.1902,139.09,139.07,8.99998546]
[1745068592191,7.1902,139.09,139.07,0.0553076]
[1745068601198,32.2698,139.1,139.07,0.0553076]
[1745068601593,25.08,139.1,139.07,0.0553076]
[1745068602798,7.1904,139.09,139.07,0.0553076]
[1745068602999,25.08,139.1,139.07,0.0553076]
[1745068603400,32.2699,139.1,139.07,0.0553076]
[1745068603801,25.08,139.1,139.07,0.0553076]
[1745068604101,7.1902,139.09,139.07,0.0553076]
[1745068618213,32.2698,139.1,139.07,0.0553076]
[1745068619014,25.08,139.1,139.07,8.99998546]
[1745068619615,25.08,139.1,139.08,7.1904]
[1745068624521,7.1887,139.12,139.09,8.94467786]
[1745068624722,27.2793,139.13,139.09,8.94467786]
[1745068624929,25.34,139.13,139.09,8.94467786]
[1745068626028,7.189,139.12,139.09,16.13467786]
[1745068626829,32.5283,139.13,139.1,7.1895]
[1745068627729,32.5283,139.13,139.1,7.24195755]
[1745068631234,32.5283,139.13,139.11,7.189]
[1745068633931,32.5283,139.13,139.1,7.24185755]
[1745068638035,8.94467786,139.15,139.11,8.94467786]
[1745068638537,16.13187786,139.15,139.12,7.1883]
[1745068641138,7.1876,139.14,139.11,16.13347786]
[1745068642441,16.13197786,139.15,139.12,7.1885]
[1745068644442,7.1876,139.14,139.11,16.13347786]
[1745068644642,8.94467786,139.15,139.11,8.94467786]
[1745068645043,16.13197786,139.15,139.12,7.1885]
[1745068646646,7.1877,139.14,139.11,16.13347786]
[1745068647044,8.94467786,139.15,139.11,8.94467786]
[1745068648344,16.13197786,139.15,139.12,7.1885]
[1745068650847,7.1876,139.14,139.11,16.13347786]
[1745068651146,8.94467786,139.15,139.1,8.99713541]
[1745068651346,16.13197786,139.15,139.12,7.1883]
[1745068652049,16.13197786,139.15,139.13,7.188]
[1745068652246,16.13197786,139.15,139.1,8.99713541]
[1745068652546,16.13197786,139.15,139.12,7.1883]
[1745068653246,7.1873,139.15,139.12,7.1883]
[1745068654646,32.4068,139.16,139.13,7.1879]
[1745068655345,32.4068,139.16,139.1,8.94467786]
[1745068655346,7.1871,139.15,139.12,7.1883]
[1745068655547,7.1871,139.15,139.13,0.0494868]
[1745068659147,7.1875,139.14,139.13,0.0494868]
[1745068659353,8.99821411,139.15,139.1,8.94467786]
[1745068659850,7.1878,139.14,139.1,8.94467786]
[1745068660051,8.99821411,139.15,139.1,16.13387786]
[1745068660460,7.1881,139.13,139.1,16.13387786]
[1745068661054,7.1881,139.13,139.1,7.1892]
[1745068668259,7.1888,139.12,139.09,7.1898]
[1745068669061,8.94467786,139.11,139.07,25.22]
[1745068669257,0.04811487,139.12,139.07,25.22]
[1745068669454,0.04811487,139.12,139.07,34.16467786]
[1745068669962,7.1893,139.11,139.08,7.1904]
[1745068671564,7.1893,139.11,139.06,7.1914]
[1745068671565,7.1902,139.09,139.06,7.1914]
[1745068671765,16.13487786,139.09,139.06,7.1914]
[1745068672362,16.13487786,139.09,139.05,7.1919]
[1745068672666,16.18344254,139.09,139.05,7.1919]
[1745068672861,7.1907,139.08,139.04,25.08]
[1745068673065,8.99324254,139.09,139.04,7.1924]
[1745068673562,8.94467786,139.07,139.04,7.1924]
[1745068673957,7.1909,139.08,139.04,7.1924]
[1745068674765,7.1913,139.07,139.04,7.1924]
[1745068675663,7.1917,139.06,139.04,7.1924]
[1745068676465,7.1922,139.05,139.03,7.193]
[1745068676860,8.94467786,139.05,139.0,8.94467786]
[1745068677367,7.1927,139.04,139.01,7.1938]
[1745068677668,7.1927,139.04,139.0,8.94467786]
[1745068678467,7.1927,139.04,139.01,7.1941]
[1745068679362,7.1927,139.04,139.0,8.94467786]
[1745068679568,16.19074507,139.05,139.02,7.1937]
[1745068681473,7.1928,139.04,139.01,7.1941]
[1745068682072,7.1935,139.03,139.0,16.13937786]
[1745068682273,8.99834507,139.05,138.98,34.04467786]
[1745068682468,25.1,139.04,138.98,34.04467786]
[1745068682673,7.1938,139.02,138.99,7.195]
[1745068683271,7.24539495,139.02,138.99,7.195]
[1745068683472,0.05159495,139.02,139.0,8.94467786]
[1745068684875,0.05159495,139.02,139.01,7.1943]
[1745068687778,25.1,139.04,139.03,7.1932]
[1745068687979,34.04467786,139.07,139.03,7.1932]
[1745068688283,25.1,139.07,139.03,7.1932]
[1745068689176,25.1,139.07,139.04,0.05345073]
[1745068689478,7.1918,139.06,139.04,0.05345073]
[1745068689982,32.2914,139.07,139.04,0.05345073]
[1745068690182,8.94467786,139.08,139.04,7.24615073]
[1745068690480,25.08,139.07,139.04,7.24615073]
[1745068691180,32.2715,139.07,139.04,0.05345073]
[1745068692186,7.1917,139.06,139.04,0.05345073]
[1745068694483,16.13637786,139.06,139.04,0.05345073]
[1745068697382,8.94467786,139.06,139.0,8.94467786]
[1745068697576,8.99185015,139.06,139.0,8.94467786]
[1745068698281,7.193,139.04,139.01,7.194]
[1745068698580,7.193,139.04,139.0,8.94467786]
[1745068700286,7.193,139.04,139.01,7.194]
[1745068708998,0.04717229,139.06,139.02,8.94467786]
[1745068709199,0.04717229,139.06,139.04,8.94467786]
[1745068711298,0.04717229,139.06,139.04,16.13707786]
[1745068718004,0.04717229,139.06,139.04,16.18611408]
[1745068720205,0.04717229,139.06,139.04,7.24143622]
[1745068721807,16.13687786,139.05,139.04,0.04903622]
[1745068722109,34.02467786,139.05,138.98,34.04467786]
[1745068723309,7.1935,139.03,139.0,7.1945]
[1745068723505,7.23999523,139.03,139.0,7.1945]
[1745068725108,7.23999523,139.03,139.01,7.1942]
[1745068725307,0.04649523,139.03,139.01,7.1942]
[1745068726107,0.04649523,139.03,139.02,7.1937]
[1745068726610,7.1914,139.07,139.04,7.1923]
[1745068726907,34.02467786,139.09,139.04,16.13697786]
[1745068727306,7.1909,139.08,139.04,16.13697786]
[1745068728012,0.04828899,139.07,139.04,16.13697786]
[1745068728208,7.23948899,139.07,139.04,16.13697786]
[1745068728611,0.04828899,139.07,139.04,16.13697786]
[1745068731813,7.23958899,139.07,139.04,16.13697786]
[1745068732012,7.23958899,139.07,139.04,7.1923]
[1745068732313,16.18426685,139.07,139.04,7.1923]
[1745068740715,7.23958899,139.07,139.04,7.1923]
[1745068741116,0.04828899,139.07,139.06,7.1917]
[1745068742413,0.04828899,139.07,139.06,16.13637786]
[1745068742717,25.08,139.13,139.06,8.94467786]
[1745068742911,25.08,139.13,139.09,8.94467786]
[1745068743517,25.08,139.13,139.1,7.1893]
[1745068743518,32.2684,139.13,139.1,7.1893]
[1745068743714,25.08,139.13,139.11,8.94467786]
[1745068744021,7.1873,139.15,139.11,16.13337786]
[1745068744520,41.19147786,139.16,139.12,7.1882]
[1745068745819,7.187,139.15,139.12,7.1882]
[1745068746212,34.00467786,139.16,139.1,0.05247835]
[1745068746213,7.1884,139.13,139.1,0.05247835]
[1745068749321,7.1884,139.13,139.1,7.24207835]
[1745068749621,7.1884,139.13,139.1,0.05247835]
[1745068752822,7.1882,139.13,139.1,0.05247835]
[1745068753022,8.94467786,139.14,139.1,0.05247835]
[1745068753221,8.94467786,139.12,139.1,0.05247835]
[1745068753422,7.1891,139.11,139.1,0.05247835]
[1745068755525,8.94467786,139.12,139.1,0.05247835]
[1745068755719,25.06,139.13,139.1,0.05247835]
[1745068755924,25.06,139.13,139.1,8.99715621]
[1745068756225,10.38207903,139.14,139.1,0.05247835]
[1745068756425,17.56987903,139.14,139.11,7.189]
[1745068758827,10.38207903,139.14,139.12,7.1884]
[1745068759128,10.38207903,139.14,139.1,8.99715621]
[1745068760128,17.56977903,139.14,139.11,7.1888]
[1745068766129,10.38207903,139.14,139.12,7.1885]
[1745068766329,1.43740117,139.14,139.12,7.1885]
[1745068766832,8.62500117,139.14,139.11,7.1888]
[1745068767734,8.6715329,139.14,139.11,7.1888]
[1745068770535,1.4839329,139.14,139.12,7.1886]
[1745068771136,8.6715329,139.14,139.12,7.1886]
[1745068775137,8.6715329,139.14,139.11,7.1889]
[1745068775637,7.1885,139.13,139.1,0.05247835]
[1745068775833,7.1885,139.13,139.1,7.24177835]
[1745068779838,8.94467786,139.12,139.1,0.05247835]
[1745068781240,7.1891,139.11,139.1,0.05247835]
[1745068783539,16.13337786,139.12,139.1,0.05247835]
[1745068787143,7.1887,139.12,139.1,0.05247835]
[1745068794848,7.1891,139.11,139.1,0.05247835]
[1745068800652,16.13377786,139.11,139.1,0.05247835]
[1745068801048,7.1907,139.08,139.03,396.89107786]
[1745068801249,7.1907,139.08,139.05,7.1919]
[1745068801651,16.13607786,139.07,139.03,34.00467786]
[1745068802052,8.94467786,139.07,139.03,34.00467786]
[1745068802351,0.05119303,139.06,139.03,34.00467786]
[1745068802852,0.05119303,139.06,139.05,7.1919]
[1745068811960,8.94467786,139.11,139.08,7.1906]
[1745068812765,16.13397786,139.11,139.08,7.1906]
[1745068813266,16.13397786,139.11,139.08,7.23875274]
[1745068815064,16.18374912,139.11,139.08,7.23875274]
[1745068816161,8.94467786,139.09,139.08,0.04815274]
[1745068816465,8.94467786,139.09,139.03,34.00467786]
[1745068816865,16.13507786,139.09,139.05,7.1917]
[1745068817664,0.0520172,139.08,139.06,7.1915]
[1745068818369,0.0520172,139.08,139.06,7.24203671]
[1745068822371,7.2427172,139.08,139.06,7.24203671]
[1745068823273,7.2429172,139.08,139.06,0.05053671]
[1745068823472,0.0520172,139.08,139.06,0.05053671]
[1745068824173,7.1911,139.07,139.06,0.05053671]
[1745068824372,16.13577786,139.07,139.06,0.05053671]
[1745068832080,8.94467786,139.07,139.06,7.24223671]
[1745068832281,0.0520172,139.08,139.06,7.24223671]
[1745068833281,0.0520172,139.08,139.07,7.1911]
[1745068842183,36.01717786,139.13,139.1,7.1894]
[1745068842379,7.1886,139.12,139.1,7.1894]
[1745068842782,7.1886,139.12,139.09,7.1899]
[1745068843481,7.1886,139.12,139.09,7.24118409]
[1745068843687,7.23566985,139.12,139.09,7.24118409]
[1745068844288,8.94467786,139.11,139.09,7.24118409]
[1745068848387,0.04706985,139.12,139.1,7.1896]
[1745068850694,0.04706985,139.12,139.11,7.1891]
[1745068852693,0.04706985,139.12,139.1,7.1893]
[1745068852989,8.94467786,139.11,139.09,0.05128409]
[1745068853186,8.94467786,139.11,139.09,7.24108409]
[1745068853384,7.1896,139.1,139.09,0.05128409]
[1745068860399,7.1911,139.08,139.03,26.9262]
[1745068860598,8.94467786,139.07,139.03,26.9262]
[1745068861003,8.94467786,139.07,139.05,7.1922]
[1745068861398,16.13587786,139.07,139.05,7.1922]
[1745068861598,16.18711905,139.07,139.05,7.1922]
[1745068862299,16.18711905,139.07,139.05,7.23884412]
[1745068862999,0.05124119,139.07,139.06,7.1917]
[1745068863396,0.05124119,139.07,139.06,16.13637786]
[1745068866597,0.05124119,139.07,139.06,7.1917]
[1745068866799,0.05124119,139.07,139.05,32.29864412]
[1745068866999,0.05124119,139.07,139.05,7.23864412]
[1745068867597,0.05124119,139.07,139.05,0.04664412]
[1745068868401,0.05124119,139.07,139.05,7.23854412]
[1745068871901,16.18731905,139.07,139.05,0.04664412]
[1745068873406,7.1917,139.06,139.05,0.04664412]
[1745068874204,16.18731905,139.07,139.05,0.04664412]
[1745068875705,16.18731905,139.07,139.05,7.23874412]
[1745068876910,8.99591905,139.07,139.05,7.23874412]
[1745068878316,16.18711905,139.07,139.05,7.23874412]
[1745068880218,7.1917,139.06,139.05,0.04664412]
[1745068881020,16.18731905,139.07,139.05,0.04664412]
[1745068883420,16.18731905,139.07,139.05,7.23874412]
[1745068885717,0.05124119,139.07,139.06,7.1917]
[1745068888719,0.05124119,139.07,139.05,7.23874412]
[1745068888923,8.99591905,139.07,139.05,7.23874412]
[1745068889323,7.1917,139.06,139.05,0.04664412]
[1745068914444,0.05124119,139.07,139.05,0.04664412]
[1745068914943,0.05124119,139.07,139.05,7.23854412]
[1745068918849,0.05124119,139.07,139.06,8.94467786]
[1745068919844,0.05124119,139.07,139.06,16.13637786]
[1745068920954,69.63444043,139.14,139.06,8.94467786]
[1745068921148,94.69444043,139.14,139.1,8.94467786]
[1745068921542,7.1888,139.12,139.1,8.94467786]
[1745068922152,7.1888,139.12,139.1,8.99840067]
[1745068923852,7.1883,139.13,139.1,16.18800067]
[1745068925154,7.1887,139.12,139.1,8.99840067]
[1745068927154,7.1882,139.13,139.1,8.99840067]
[1745068927354,7.1882,139.13,139.1,16.18790067]
[1745068928054,1.43740117,139.14,139.12,8.94467786]
[1745068928655,1.43740117,139.14,139.13,7.188]
[1745068929250,25.06,139.18,139.15,7.1868]
[1745068929450,25.06,139.18,139.14,8.94467786]
[1745068929852,7.1863,139.17,139.14,16.13197786]
[1745068930151,25.10914931,139.18,139.16,8.94467786]
[1745068930348,25.10914931,139.18,139.16,16.13117786]
[1745068930553,25.10914931,139.18,139.16,8.94467786]
[1745068931753,0.04914931,139.18,139.16,8.94467786]
[1745068931960,34.00467786,139.24,139.16,8.94467786]
[1745068932160,34.00467786,139.24,139.18,8.94467786]
[1745068932460,7.1843,139.21,139.16,8.94467786]
[1745068932655,7.1843,139.21,139.17,7.1856]
[1745068933261,7.1843,139.21,139.18,0.05328057]
[1745068933451,7.1843,139.21,139.18,16.18325843]
[1745068941175,25.06,139.24,139.18,8.99795843]
[1745068941363,25.06,139.24,139.2,8.94467786]
[1745068941862,32.2424,139.24,139.2,16.12887786]
[1745068942062,0.04721213,139.23,139.2,16.12887786]
[1745068942567,0.04721213,139.23,139.22,8.94467786]
[1745068943173,0.04721213,139.23,139.22,3.55797227]
[1745068943467,0.04721213,139.23,139.22,10.74137227]
[1745068943866,25.04,139.27,139.22,28.59797227]
[1745068944065,25.04,139.31,139.26,8.94467786]
[1745068944265,1.24986532,139.32,139.28,8.94467786]
[1745068944470,7.1791,139.31,139.28,8.94467786]
[1745068944673,1.43554407,139.32,139.28,8.94467786]
[1745068944868,1.43554407,139.32,139.3,8.94467786]
[1745068945172,1.43554407,139.32,139.31,25.04]
[1745068945475,67.7284074,139.35,139.29,34.03645676]
[1745068945675,8.94467786,139.34,139.29,33.98467786]
[1745068945875,7.178,139.33,139.29,33.98467786]
[1745068946175,8.94467786,139.34,139.31,0.0460989]
[1745068946377,7.177,139.35,139.31,0.0460989]
[1745068946579,7.177,139.35,139.31,8.99077676]
[1745068946787,3.753,139.38,139.33,8.94467786]
[1745068947168,8.94467786,139.37,139.32,8.94467786]
[1745068947474,8.94467786,139.37,139.31,8.94467786]
[1745068947680,7.177,139.35,139.33,0.04949012]
[1745068947875,8.94467786,139.35,139.33,0.04949012]
[1745068948379,7.1772,139.34,139.33,0.04949012]
[1745068948675,8.94467786,139.35,139.29,8.94467786]
[1745068948869,8.94467786,139.33,139.29,8.94467786]
[1745068949074,7.1783,139.32,139.29,8.94467786]
[1745068949875,7.179,139.31,139.29,0.05269744]
[1745068950075,26.26937172,139.37,139.29,8.9973753]
[1745068950274,33.96467786,139.37,139.31,8.94467786]
[1745068950475,7.1771,139.35,139.31,8.94467786]
[1745068951175,7.1771,139.35,139.32,0.04631963]
[1745068951772,7.1777,139.34,139.32,0.04631963]
[1745068951977,8.94467786,139.35,139.32,0.04631963]
[1745068952178,8.99720003,139.35,139.32,0.04631963]
[1745068952576,7.1777,139.33,139.32,0.04631963]
[1745068953376,7.1773,139.34,139.32,0.04631963]
[1745068953576,8.99720003,139.35,139.32,0.04631963]
[1745068954374,7.1772,139.34,139.32,0.04631963]
[1745068954578,0.05252217,139.35,139.32,8.99099749]
[1745068954874,0.05252217,139.35,139.32,16.16899749]
[1745068955578,7.22932217,139.35,139.32,16.16899749]
[1745068956077,0.05252217,139.35,139.32,8.99099749]
[1745068956278,0.05252217,139.35,139.32,0.04631963]
[1745068957182,7.1773,139.34,139.32,0.04631963]
[1745068957375,0.05252217,139.35,139.32,0.04631963]
[1745068957675,0.05252217,139.35,139.32,8.99099749]
[1745068957876,7.22942217,139.35,139.32,8.99099749]
[1745068958479,7.22942217,139.35,139.32,16.16919749]
[1745068961283,7.1773,139.34,139.32,8.99099749]
[1745068961783,7.22952217,139.35,139.32,16.16889749]
[1745068961984,0.05252217,139.35,139.34,8.94467786]
[1745068963185,0.05252217,139.35,139.34,33.96467786]
[1745068964679,0.05252217,139.35,139.34,41.14187786]
[1745068966191,0.05252217,139.35,139.34,32.1972]
[1745068966487,0.05252217,139.35,139.34,41.14187786]
[1745068967380,0.05252217,139.35,139.34,33.96467786]
[1745068973690,0.05252217,139.35,139.34,41.14187786]
[1745068975094,0.05252217,139.35,139.32,0.04631963]
[1745068975593,7.22932217,139.35,139.32,7.22431963]
[1745068975797,0.05252217,139.35,139.32,0.04631963]
[1745068976093,0.05252217,139.35,139.33,8.94467786]
[1745068977191,0.05252217,139.35,139.34,7.1772]
[1745068978694,0.05252217,139.35,139.33,16.12217786]
[1745068980394,0.05252217,139.35,139.34,7.1772]
[1745068981198,0.05252217,139.35,139.33,16.12217786]
[1745068983100,0.05252217,139.35,139.34,7.1772]
[1745068988098,7.1749,139.39,139.36,7.1757]
[1745068988396,7.1749,139.39,139.36,16.12037786]
[1745068989298,7.1749,139.39,139.36,16.17150154]
[1745068990702,7.1754,139.38,139.36,0.05112368]
[1745068992203,7.1757,139.37,139.36,0.05112368]
[1745068992497,8.94467786,139.4,139.36,0.05112368]
[1745068992706,7.1755,139.38,139.36,0.05112368]
[1745068993002,8.94467786,139.38,139.36,0.05112368]
[1745068993394,25.38,139.37,139.28,8.94467786]
[1745068993701,8.94467786,139.35,139.29,25.38]
[1745068993900,8.94467786,139.33,139.29,25.38]
[1745068994101,8.94467786,139.33,139.3,7.179]
[1745068994302,8.94467786,139.33,139.29,25.38]
[1745068994704,16.12287786,139.33,139.3,0.05286875]
[1745068995203,8.94467786,139.33,139.3,7.23166875]
[1745068995705,8.94467786,139.33,139.3,0.05286875]
[1745068996104,8.94467786,139.33,139.31,7.1788]
[1745068996405,8.94467786,139.33,139.3,0.05286875]
[1745068996604,16.12247786,139.33,139.3,7.23166875]
[1745068996903,16.12247786,139.33,139.3,0.05286875]
[1745068997599,16.12247786,139.33,139.3,7.23186875]
[1745068998000,29.197,139.37,139.3,7.23186875]
[1745068998001,7.1774,139.34,139.3,0.05286875]
[1745068998202,7.1774,139.34,139.31,7.1785]
[1745069000304,7.1781,139.33,139.3,7.23196875]
[1745069000505,8.94467786,139.33,139.3,0.05286875]
[1745069000901,29.197,139.37,139.3,8.99754661]
[1745069001106,8.94467786,139.35,139.3,8.99754661]
[1745069001504,7.1775,139.34,139.31,7.1785]
[1745069001705,7.1775,139.34,139.3,8.99754661]
[1745069001901,7.1775,139.34,139.3,0.05286875]
[1745069003104,7.1775,139.34,139.3,7.23176875]
[1745069003905,7.1775,139.34,139.31,7.1787]
[1745069004305,7.1775,139.34,139.3,7.23186875]
[1745069005105,7.1775,139.34,139.31,7.1786]
[1745069006300,7.178,139.33,139.3,7.23186875]
[1745069006506,8.94467786,139.33,139.3,0.05286875]
[1745069007005,7.1782,139.32,139.3,0.05286875]
[1745069007506,16.12267786,139.33,139.3,7.23216875]
[1745069010308,16.12267786,139.33,139.31,7.1787]